bitfinex-derivatives/quotes_BTCF0:USTF0_20260207
["timestamp","ask_amount","ask_price","bid_price","bid_amount"]
[1770498004643,0.41503878,69731.0,69707.0,0.42599918]
[1770498004849,0.41503878,69731.0,69710.0,0.41164318]
[1770498005148,0.41503878,69731.0,69712.0,0.41164318]
[1770498006845,0.41503878,69731.0,69713.0,0.46617382]
[1770498008146,0.42939078,69731.0,69713.0,0.45181882]
[1770498010450,0.41503878,69731.0,69715.0,0.45181882]
[1770498010850,0.41503878,69731.0,69716.0,0.014355]
[1770498011448,0.41503878,69731.0,69716.0,0.46617382]
[1770498012547,0.41503878,69731.0,69716.0,0.45181882]
[1770498012749,0.43333576,69727.0,69708.0,0.014356]
[1770498014657,0.43333576,69727.0,69706.0,0.43373453]
[1770498016354,0.43333576,69727.0,69709.0,0.43373453]
[1770498017164,0.43333576,69741.0,69711.0,0.43373453]
[1770498017460,0.43333576,69738.0,69715.0,0.43373453]
[1770498018457,0.43333576,69738.0,69718.0,0.43373453]
[1770498018852,0.01435,69737.0,69718.0,0.43373453]
[1770498019053,0.43333576,69736.0,69718.0,0.43373453]
[1770498020245,0.43333576,69736.0,69718.0,0.44808853]
[1770498020756,0.43333576,69736.0,69718.0,0.43373453]
[1770498021960,0.014349,69741.0,69720.0,0.43373453]
[1770498022260,0.44768476,69741.0,69720.0,0.43373453]
[1770498022447,0.44768576,69738.0,69720.0,0.43373453]
[1770498025261,0.44768576,69738.0,69722.0,0.43373453]
[1770498025262,0.43333576,69738.0,69722.0,0.43373453]
[1770498025563,0.43333576,69745.0,69723.0,0.43373453]
[1770498026357,0.43333576,69745.0,69728.0,0.44808653]
[1770498027157,0.43333576,69745.0,69731.0,0.44808653]
[1770498028163,0.014348,69750.0,69731.0,0.43373453]
[1770498028363,0.44768376,69750.0,69731.0,0.43373453]
[1770498029661,0.43333576,69750.0,69731.0,0.43373453]
[1770498030067,0.43333576,69756.0,69736.0,0.43373453]
[1770498030268,0.43333576,69754.0,69736.0,0.43373453]
[1770498030567,0.43333576,69754.0,69737.0,0.44808453]
[1770498031063,0.43333576,69762.0,69743.0,0.44808353]
[1770498031964,0.43333576,69773.0,69751.0,0.43373453]
[1770498032164,0.43333576,69773.0,69752.0,0.44808153]
[1770498032663,0.43333576,69773.0,69755.0,0.014346]
[1770498032869,0.43333576,69779.0,69758.0,0.43373453]
[1770498033369,0.13233577,69779.0,69758.0,0.43373453]
[1770498033864,0.13233577,69779.0,69761.0,0.014345]
[1770498034071,0.13233577,69779.0,69762.0,0.43373453]
[1770498034469,0.43333576,69785.0,69764.0,0.43373453]
[1770498034770,0.43347688,69784.0,69764.0,0.43373453]
[1770498035673,0.45700732,69787.0,69767.0,0.45553141]
[1770498035873,0.47134632,69794.0,69770.0,0.45553141]
[1770498036267,0.45700732,69789.0,69770.0,0.45553141]
[1770498037174,0.45700732,69789.0,69771.0,0.014343]
[1770498038271,0.4568662,69789.0,69771.0,0.014343]
[1770498040369,0.4568662,69789.0,69770.0,0.45553141]
[1770498041175,0.45700732,69778.0,69751.0,0.45553141]
[1770498041764,0.45700732,69776.0,69751.0,0.46987841]
[1770498042269,0.45700732,69776.0,69751.0,0.47087841]
[1770498042668,0.45700732,69774.0,69754.0,0.014347]
[1770498043579,0.014344,69768.0,69751.0,0.001]
[1770498043769,0.45700732,69767.0,69746.0,0.014348]
[1770498043967,0.45700732,69767.0,69749.0,0.014348]
[1770498044374,0.45700732,69767.0,69749.0,0.46987941]
[1770498044583,0.45700732,69779.0,69755.0,0.45553141]
[1770498045073,0.45700732,69779.0,69764.0,0.014345]
[1770498045271,0.45700732,69779.0,69761.0,0.46987641]
[1770498045472,0.45700732,69779.0,69761.0,0.45553141]
[1770498046374,0.47134932,69779.0,69761.0,0.45553141]
[1770498047180,0.45700732,69779.0,69761.0,0.45553141]
[1770498047380,0.45700732,69787.0,69766.0,0.46987541]
[1770498047872,0.45700732,69787.0,69769.0,0.014344]
[1770498048078,0.45700732,69787.0,69770.0,0.45553141]
[1770498049174,0.08601,69814.0,69772.0,0.014343]
[1770498049175,0.45700732,69793.0,69772.0,0.014343]
[1770498049477,0.01434,69789.0,69770.0,0.45553141]
[1770498049672,0.45700732,69786.0,69764.0,0.014345]
[1770498050969,0.45700732,69786.0,69764.0,0.46987641]
[1770498051272,0.45700732,69776.0,69757.0,0.45553141]
[1770498053074,0.45700732,69776.0,69757.0,0.45653141]
[1770498053678,0.45700732,69776.0,69757.0,0.45553141]
[1770498053883,0.45700732,69774.0,69745.0,0.45553141]
[1770498054083,0.45700732,69774.0,69753.0,0.014347]
[1770498054478,0.45700732,69774.0,69756.0,0.014346]
[1770498054978,0.45700732,69774.0,69756.0,0.46987741]
[1770498055179,0.014341,69784.0,69759.0,0.46987741]
[1770498055381,0.45700732,69783.0,69759.0,0.46987741]
[1770498057281,0.45700732,69781.0,69759.0,0.46987741]
[1770498057583,0.45700732,69779.0,69759.0,0.46987741]
[1770498057787,0.45700732,69779.0,69759.0,0.45553141]
[1770498058885,0.45700732,69776.0,69750.0,0.45553141]
[1770498059081,0.45700732,69770.0,69750.0,0.45553141]
[1770498059385,0.45700732,69770.0,69751.0,0.014347]
[1770498059780,0.45700732,69768.0,69749.0,0.45553141]
[1770498060079,0.45700732,69768.0,69750.0,0.014347]
[1770498060486,0.45700732,69766.0,69743.0,0.56902613]
[1770498060785,0.45700732,69766.0,69746.0,0.014348]
[1770498060986,0.45700732,69766.0,69749.0,0.014348]
[1770498061781,0.45700732,69766.0,69743.0,0.45553141]
[1770498062084,0.45700732,69766.0,69744.0,0.46988041]
[1770498062386,0.45700732,69766.0,69747.0,0.014348]
[1770498062786,0.45700732,69766.0,69750.0,0.014347]
[1770498063091,0.45700732,69773.0,69756.0,0.45553141]
[1770498063284,0.45700732,69773.0,69747.0,0.11334258]
[1770498063285,0.45700732,69782.0,69760.0,0.46987641]
[1770498064390,0.45700732,69782.0,69763.0,0.45553141]
[1770498065091,0.45700732,69782.0,69764.0,0.014345]
[1770498065388,0.45700732,69782.0,69764.0,0.48700477]
[1770498065591,0.45700732,69782.0,69764.0,0.47265977]
[1770498066699,0.45700732,69782.0,69730.0,0.014352]
[1770498066700,0.45594541,69781.0,69761.0,0.48700477]
[1770498066988,0.014342,69780.0,69761.0,0.47265977]
[1770498067186,0.45594541,69777.0,69755.0,0.47265977]
[1770498068494,0.45594541,69777.0,69756.0,0.014346]
[1770498070701,0.45594541,69764.0,69748.0,0.11333159]
[1770498070900,0.45594541,69764.0,69739.0,0.47265977]
[1770498070901,0.47029041,69764.0,69740.0,0.11333159]
[1770498071200,0.45594541,69756.0,69734.0,0.28709089]
[1770498071497,0.45594541,69756.0,69732.0,0.47265977]
[1770498072000,0.45594541,69756.0,69726.0,0.28772667]
[1770498072395,0.014342,69780.0,69724.0,0.43174183]
[1770498072396,0.44657307,69748.0,69724.0,0.43174183]
[1770498072600,0.44657307,69748.0,69717.0,0.54507342]
[1770498072800,0.44657307,69742.0,69718.0,0.43174183]
[1770498075002,0.44657307,69742.0,69713.0,0.11333159]
[1770498075296,0.44657307,69742.0,69689.0,0.43157584]
[1770498075297,0.44657307,69727.0,69703.0,0.43174183]
[1770498075894,0.44657307,69725.0,69703.0,0.43174183]
[1770498078096,0.44657307,69733.0,69703.0,0.43174183]
[1770498078302,0.46092307,69740.0,69709.0,0.43174183]
[1770498080695,0.014351,69736.0,69709.0,0.43174183]
[1770498080898,0.44657307,69716.0,69692.0,0.43174183]
[1770498081096,0.44657307,69712.0,69677.0,0.43174183]
[1770498081304,0.44657307,69712.0,69668.0,0.21239614]
[1770498081305,0.014356,69708.0,69681.0,0.43174183]
[1770498084396,0.46092907,69708.0,69681.0,0.43174183]
[1770498084602,0.46093007,69705.0,69681.0,0.43174183]
[1770498085208,0.44657307,69693.0,69663.0,0.43174183]
[1770498085401,0.014362,69679.0,69656.0,0.43174183]
[1770498085594,0.44657307,69700.0,69666.0,0.43174183]
[1770498085904,0.44657307,69696.0,69670.0,0.43174183]
[1770498086300,0.014359,69695.0,69670.0,0.43174183]
[1770498086598,0.01436,69691.0,69670.0,0.43174183]
[1770498088707,0.014362,69682.0,69658.0,0.43174183]
[1770498088903,0.44657307,69685.0,69658.0,0.44610783]
[1770498089102,0.014361,69684.0,69658.0,0.44610783]
[1770498089605,0.46093607,69675.0,69651.0,0.43174183]
[1770498089905,0.014362,69680.0,69653.0,0.43174183]
[1770498090207,0.014361,69684.0,69658.0,0.43174183]
[1770498090608,0.01436,69688.0,69660.0,0.43174183]
[1770498090802,0.01436,69688.0,69662.0,0.43174183]
[1770498091306,0.01436,69692.0,69664.0,0.43174183]
[1770498091603,0.014359,69696.0,69666.0,0.43174183]
[1770498091799,0.014359,69696.0,69668.0,0.43174183]
[1770498092600,0.44657307,69699.0,69670.0,0.43174183]
[1770498092808,0.014358,69698.0,69672.0,0.43174183]
[1770498093104,0.01436,69692.0,69672.0,0.43174183]
[1770498094107,0.014359,69696.0,69672.0,0.43174183]
[1770498094303,0.014359,69696.0,69651.0,0.28625523]
[1770498094304,0.44657307,69713.0,69674.0,0.43174183]
[1770498094605,0.44657307,69713.0,69651.0,0.28625523]
[1770498094606,0.014359,69695.0,69678.0,0.43174183]
[1770498094801,0.46093207,69695.0,69666.0,0.43174183]
[1770498095108,0.46093207,69695.0,69668.0,0.43174183]
[1770498095309,0.46093307,69691.0,69668.0,0.43174183]
[1770498096610,0.014361,69688.0,69668.0,0.43174183]
[1770498097203,0.014361,69685.0,69668.0,0.43174183]
[1770498098510,0.014362,69682.0,69668.0,0.43174183]
[1770498098709,0.014362,69679.0,69659.0,0.44302477]
[1770498098912,0.47761471,69685.0,69644.0,0.28703091]
[1770498098913,0.014365,69668.0,69644.0,0.44302477]
[1770498099111,0.47761471,69675.0,69644.0,0.45739377]
[1770498099112,0.014364,69673.0,69644.0,0.45739377]
[1770498099310,0.014364,69669.0,69644.0,0.44302477]
[1770498100012,0.47761471,69673.0,69644.0,0.44302477]
[1770498100207,0.014363,69674.0,69644.0,0.44302477]
[1770498100715,0.014362,69679.0,69648.0,0.44302477]
[1770498101615,0.47761471,69682.0,69652.0,0.44302477]
[1770498102202,0.014358,69700.0,69652.0,0.45739277]
[1770498102203,0.014362,69681.0,69652.0,0.45739277]
[1770498104010,0.01436,69690.0,69663.0,0.44302477]
[1770498104207,0.47761471,69697.0,69663.0,0.44302477]
[1770498104411,0.47761471,69686.0,69652.0,0.44302477]
[1770498104611,0.01436,69692.0,69652.0,0.44302477]
[1770498104612,0.014365,69664.0,69652.0,0.44302477]
[1770498104815,0.014365,69664.0,69639.0,0.44302477]
[1770498106322,0.47761471,69673.0,69639.0,0.44402477]
[1770498106323,0.014366,69660.0,69639.0,0.44402477]
[1770498106516,0.014366,69660.0,69627.0,0.17014973]
[1770498106517,0.47761471,69658.0,69631.0,0.44302477]
[1770498106722,0.47761471,69656.0,69631.0,0.44302477]
[1770498107217,0.01437,69643.0,69631.0,0.44302477]
[1770498107721,0.01437,69643.0,69631.0,0.14102477]
[1770498108019,0.01437,69643.0,69619.0,0.44302477]
[1770498108218,0.47761471,69646.0,69619.0,0.44302477]
[1770498108411,0.01437,69640.0,69619.0,0.44302477]
[1770498111924,0.01437,69644.0,69619.0,0.44302477]
[1770498113223,0.01437,69644.0,69619.0,0.45739877]
[1770498113528,0.014369,69648.0,69619.0,0.45739877]
[1770498113722,0.014369,69648.0,69610.0,0.11333159]
[1770498113723,0.014368,69652.0,69626.0,0.44302477]
[1770498114319,0.014369,69649.0,69626.0,0.44302477]
[1770498115426,0.014368,69653.0,69626.0,0.45739777]
[1770498115925,0.014368,69653.0,69630.0,0.44302477]
[1770498117020,0.14428938,69660.0,69615.0,0.11333159]
[1770498117021,0.014367,69657.0,69632.0,0.44302477]
[1770498118130,0.014366,69662.0,69638.0,0.44302477]
[1770498118325,0.014365,69666.0,69641.0,0.44302477]
[1770498118625,0.014366,69663.0,69641.0,0.44302477]
[1770498119221,0.47761471,69652.0,69632.0,0.44302477]
[1770498119421,0.014369,69648.0,69632.0,0.44302477]
[1770498120429,0.49198271,69652.0,69632.0,0.44302477]
[1770498120627,0.014368,69652.0,69632.0,0.44302477]
[1770498120821,0.014368,69649.0,69632.0,0.44302477]
[1770498121625,0.014368,69649.0,69632.0,0.44402477]
[1770498122325,0.014368,69649.0,69632.0,0.44302477]
[1770498123427,0.014369,69646.0,69625.0,0.014373]
[1770498124128,0.014369,69646.0,69625.0,0.45739777]
[1770498124530,0.014368,69649.0,69625.0,0.45739777]
[1770498124733,0.014368,69650.0,69632.0,0.44302477]
[1770498126134,0.014369,69648.0,69632.0,0.44302477]
[1770498127138,0.47154059,69654.0,69625.0,0.47540425]
[1770498127337,0.15865538,69660.0,69625.0,0.47540425]
[1770498127338,0.01437,69640.0,69625.0,0.47540425]
[1770498127731,0.01437,69640.0,69621.0,0.014374]
[1770498128030,0.01437,69640.0,69621.0,0.48977825]
[1770498129034,0.01437,69640.0,69608.0,0.92968895]
[1770498129035,0.47154059,69633.0,69608.0,0.00012895]
[1770498129225,0.014371,69638.0,69605.0,0.47540425]
[1770498129226,0.014374,69622.0,69605.0,0.47540425]
[1770498129433,0.47154059,69627.0,69605.0,0.47540425]
[1770498129930,0.014371,69636.0,69597.0,0.0002]
[1770498129931,0.47154059,69623.0,69597.0,0.0002]
[1770498130131,0.47154059,69623.0,69596.0,0.47540425]
[1770498130335,0.47154059,69619.0,69586.0,0.47540425]
[1770498131335,0.014377,69610.0,69586.0,0.47540425]
[1770498131536,0.014374,69624.0,69586.0,0.47540425]
[1770498131537,0.014378,69605.0,69586.0,0.47540425]
[1770498132746,0.44341755,69611.0,69586.0,0.47540425]
[1770498132747,0.014378,69602.0,69586.0,0.47540425]
[1770498133442,0.014377,69606.0,69586.0,0.47540425]
[1770498134143,0.014377,69606.0,69586.0,0.47640425]
[1770498134551,0.44341755,69611.0,69586.0,0.47640425]
[1770498134552,0.014378,69603.0,69586.0,0.47640425]
[1770498134732,0.014378,69603.0,69586.0,0.47540425]
[1770498136639,0.014379,69600.0,69586.0,0.47540425]
[1770498138649,0.014379,69597.0,69578.0,0.47645407]
[1770498138842,0.01438,69594.0,69578.0,0.46207107]
[1770498139240,0.01438,69592.0,69573.0,0.0002]
[1770498139538,0.44341755,69589.0,69573.0,0.0002]
[1770498139742,0.014382,69585.0,69564.0,0.47645707]
[1770498140143,0.014382,69585.0,69564.0,0.46207107]
[1770498140340,0.44341755,69589.0,69566.0,0.46207107]
[1770498141341,0.44341755,69589.0,69568.0,0.014385]
[1770498141544,0.44341755,69589.0,69569.0,0.46207107]
[1770498142542,0.44341755,69589.0,69569.0,0.46192995]
[1770498147563,0.44341755,69609.0,69590.0,0.46207107]
[1770498147858,0.45779455,69609.0,69590.0,0.46207107]
[1770498148051,0.014377,69609.0,69590.0,0.46207107]
[1770498148253,0.014376,69613.0,69590.0,0.46207107]
[1770498148761,0.014376,69613.0,69592.0,0.46207107]
[1770498149259,0.44341755,69616.0,69592.0,0.46207107]
[1770498149260,0.014377,69610.0,69592.0,0.46207107]
[1770498149852,0.014376,69613.0,69593.0,0.01438]
[1770498150860,0.44341755,69616.0,69596.0,0.47645007]
[1770498151367,0.44341755,69616.0,69591.0,0.01438]
[1770498151751,0.014374,69624.0,69591.0,0.01438]
[1770498151752,0.44341755,69613.0,69591.0,0.01438]
[1770498152562,0.44341755,69613.0,69580.0,0.014383]
[1770498152563,0.014376,69611.0,69593.0,0.01438]
[1770498152753,0.44341755,69630.0,69602.0,0.46207107]
[1770498153057,0.014377,69610.0,69593.0,0.46207107]
[1770498153255,0.44341755,69610.0,69597.0,0.014379]
[1770498153565,0.45779255,69617.0,69597.0,0.014379]
[1770498154056,0.014376,69614.0,69597.0,0.014379]
[1770498154754,0.44341755,69617.0,69597.0,0.47645007]
[1770498155156,0.014375,69616.0,69597.0,0.47645007]
[1770498157260,0.4433344,69616.0,69597.0,0.46207107]
[1770498157859,0.4577104,69614.0,69594.0,0.01438]
[1770498160354,0.4577104,69614.0,69594.0,0.46420244]
[1770498160567,0.014375,69618.0,69599.0,0.014379]
[1770498161263,0.014375,69618.0,69599.0,0.46420144]
[1770498163967,0.014375,69618.0,69603.0,0.44982244]
[1770498165362,0.014374,69622.0,69603.0,0.44982244]
[1770498165561,0.014375,69618.0,69603.0,0.44982244]
[1770498167565,0.014374,69622.0,69603.0,0.44982244]
[1770498168362,0.4433344,69626.0,69605.0,0.44982244]
[1770498168564,0.014375,69620.0,69605.0,0.44982244]
[1770498171569,0.014375,69618.0,69605.0,0.44982244]
[1770498171768,0.014375,69615.0,69597.0,0.44982244]
[1770498172469,0.4577104,69612.0,69597.0,0.44982244]
[1770498172971,0.4433344,69612.0,69597.0,0.44982244]
[1770498173468,0.4433344,69612.0,69595.0,0.014379]
[1770498173669,0.014379,69597.0,69577.0,0.44682244]
[1770498173867,0.049379,69596.0,69577.0,0.44682244]
[1770498174066,0.049,69585.0,69577.0,0.44682244]
[1770498174367,0.4577134,69596.0,69577.0,0.44682244]
[1770498174769,0.049,69578.0,69577.0,0.44682244]
[1770498175273,0.01438,69593.0,69577.0,0.44682244]
[1770498175462,0.049,69592.0,69577.0,0.44682244]
[1770498175866,0.049,69591.0,69577.0,0.44682244]
[1770498176175,0.049,69592.0,69577.0,0.44682244]
[1770498176571,0.049,69591.0,69577.0,0.44682244]
[1770498176872,0.049,69592.0,69577.0,0.44682244]
[1770498177267,0.049,69591.0,69577.0,0.44682244]
[1770498177466,0.049,69592.0,69577.0,0.44682244]
[1770498177975,0.049,69591.0,69577.0,0.44682244]
[1770498178166,0.4433344,69588.0,69564.0,0.45002244]
[1770498178361,0.014382,69584.0,69564.0,0.45002244]
[1770498178567,0.014383,69580.0,69564.0,0.44982244]
[1770498178974,0.049,69579.0,69564.0,0.44982244]
[1770498179375,0.049,69578.0,69564.0,0.44982244]
[1770498179675,0.014383,69578.0,69564.0,0.44982244]
[1770498179875,0.014383,69576.0,69564.0,0.44982244]
[1770498180272,0.014384,69573.0,69556.0,0.44982244]
[1770498180776,0.014385,69570.0,69556.0,0.44982244]
[1770498180976,0.014382,69583.0,69560.0,0.44982244]
[1770498181274,0.014382,69583.0,69562.0,0.44982244]
[1770498181571,0.01438,69591.0,69569.0,0.44982244]
[1770498181776,0.01438,69591.0,69571.0,0.44982244]
[1770498182370,0.4433344,69603.0,69574.0,0.44982244]
[1770498182980,0.014379,69597.0,69576.0,0.44982244]
[1770498183177,0.4433344,69603.0,69576.0,0.44982244]
[1770498184479,0.014379,69597.0,69576.0,0.44982244]
[1770498186684,0.46676623,69588.0,69569.0,0.45720542]
[1770498186884,0.014381,69587.0,69577.0,0.0002]
[1770498187183,0.014381,69587.0,69569.0,0.45720542]
[1770498187479,0.46676623,69588.0,69569.0,0.45720542]
[1770498187480,0.014382,69584.0,69569.0,0.45720542]
[1770498187684,0.46676623,69588.0,69569.0,0.45720542]
[1770498187982,0.014381,69589.0,69569.0,0.45720542]
[1770498188882,0.46676623,69595.0,69569.0,0.45720542]
[1770498189086,0.014383,69580.0,69569.0,0.45720542]
[1770498189278,0.014383,69580.0,69569.0,0.15540543]
[1770498189479,0.46676623,69582.0,69554.0,0.47159342]
[1770498190082,0.014383,69579.0,69554.0,0.47159342]
[1770498190281,0.46676623,69582.0,69558.0,0.45720542]
[1770498191477,0.014384,69576.0,69558.0,0.45720542]
[1770498192179,0.014383,69580.0,69561.0,0.014387]
[1770498192378,0.014383,69580.0,69562.0,0.45383471]
[1770498193377,0.45270224,69583.0,69562.0,0.45383471]
[1770498193579,0.45270224,69580.0,69562.0,0.45383471]
[1770498195383,0.014383,69577.0,69562.0,0.45383471]
[1770498195581,0.014383,69581.0,69562.0,0.45383471]
[1770498197192,0.014382,69585.0,69564.0,0.45383471]
[1770498197385,0.014382,69582.0,69564.0,0.45383471]
[1770498197893,0.014383,69579.0,69564.0,0.45383471]
[1770498198791,0.46708424,69583.0,69564.0,0.45383471]
[1770498200494,0.014383,69580.0,69564.0,0.45383471]
[1770498206592,0.45270224,69583.0,69564.0,0.45383471]
[1770498207996,0.014384,69576.0,69564.0,0.45383471]
[1770498208588,0.014383,69579.0,69564.0,0.45383471]
[1770498212994,0.014381,69589.0,69572.0,0.45383471]
[1770498213201,0.46708024,69603.0,69574.0,0.45383471]
[1770498213202,0.01438,69592.0,69574.0,0.45383471]
[1770498214495,0.01438,69592.0,69576.0,0.45383471]
[1770498216402,0.45270224,69598.0,69566.0,0.014385]
[1770498216696,0.50013702,69594.0,69567.0,0.46560626]
[1770498217203,0.014381,69587.0,69568.0,0.014385]
[1770498217396,0.014381,69587.0,69569.0,0.46560626]
[1770498218001,0.51451802,69591.0,69571.0,0.46560626]
[1770498218201,0.014381,69591.0,69571.0,0.46560626]
[1770498218401,0.014381,69591.0,69573.0,0.46560626]
[1770498218702,0.014376,69611.0,69578.0,0.46560626]
[1770498218905,0.50013702,69607.0,69578.0,0.46560626]
[1770498220503,0.01438,69596.0,69578.0,0.46560626]
[1770498221304,0.001,69607.0,69583.0,0.46560626]
[1770498221600,0.001,69607.0,69588.0,0.46560626]
[1770498222503,0.014376,69604.0,69588.0,0.46560626]
[1770498225998,0.014375,69609.0,69588.0,0.46560626]
[1770498226401,0.014374,69614.0,69597.0,0.46560626]
[1770498226595,0.014374,69618.0,69599.0,0.46560626]
[1770498226802,0.014374,69616.0,69599.0,0.46560626]
[1770498234608,0.50013702,69626.0,69601.0,0.46560626]
[1770498234809,0.50013702,69635.0,69605.0,0.46560626]
[1770498235508,0.50013702,69631.0,69605.0,0.46560626]
[1770498235914,0.014372,69625.0,69605.0,0.46560626]
[1770498236114,0.014373,69622.0,69605.0,0.46560626]
[1770498236510,0.014373,69622.0,69607.0,0.46560626]
[1770498236905,0.50013702,69637.0,69616.0,0.46560626]
[1770498237213,0.50013702,69646.0,69618.0,0.46560626]
[1770498237811,0.50013702,69646.0,69620.0,0.46560626]
[1770498238213,0.01437,69636.0,69620.0,0.46560626]
[1770498238411,0.01437,69634.0,69620.0,0.46560626]
[1770498240610,0.014369,69641.0,69622.0,0.46560626]
[1770498240818,0.014369,69641.0,69624.0,0.46560626]
[1770498241519,0.01437,69637.0,69624.0,0.46560626]
[1770498241714,0.014371,69630.0,69615.0,0.46560626]
[1770498241920,0.014372,69627.0,69615.0,0.46560626]
[1770498242112,0.50013702,69634.0,69615.0,0.46560626]
[1770498242113,0.014372,69625.0,69615.0,0.46560626]
[1770498243114,0.014371,69629.0,69615.0,0.46560626]
[1770498243315,0.01437,69632.0,69615.0,0.46560626]
[1770498244018,0.014371,69630.0,69615.0,0.46560626]
[1770498245417,0.014371,69628.0,69615.0,0.46560626]
[1770498249733,0.01437,69632.0,69615.0,0.46560626]
[1770498249932,0.014372,69625.0,69597.0,0.49991259]
[1770498250136,0.014372,69625.0,69591.0,0.93024]
[1770498250137,0.014374,69616.0,69604.0,0.49991259]
[1770498250631,0.014374,69616.0,69583.0,0.21317524]
[1770498250632,0.014377,69601.0,69584.0,0.49991259]
[1770498251739,0.014378,69595.0,69584.0,0.49991259]
[1770498252331,0.50275968,69601.0,69584.0,0.49991259]
[1770498252332,0.014377,69599.0,69584.0,0.49991259]
[1770498253440,0.014376,69607.0,69586.0,0.49952765]
[1770498253742,0.014375,69611.0,69588.0,0.49952765]
[1770498254326,0.014375,69611.0,69574.0,0.11389368]
[1770498254327,0.014375,69611.0,69590.0,0.49952765]
[1770498255242,0.50275968,69618.0,69590.0,0.49952765]
[1770498255243,0.014375,69608.0,69590.0,0.49952765]
[1770498259839,0.50275968,69618.0,69592.0,0.49952765]
[1770498260039,0.14491877,69650.0,69577.0,0.11389368]
[1770498260040,0.50275968,69624.0,69595.0,0.49952765]
[1770498260246,0.014373,69620.0,69601.0,0.49952765]
[1770498260941,0.50275968,69624.0,69601.0,0.49952765]
[1770498261339,0.014374,69615.0,69601.0,0.49952765]
[1770498266049,0.014375,69613.0,69597.0,0.49952765]
[1770498266245,0.014375,69613.0,69596.0,0.014378]
[1770498266246,0.50275968,69615.0,69598.0,0.51390465]
[1770498266446,0.014374,69614.0,69598.0,0.51390465]
[1770498266646,0.014374,69614.0,69598.0,0.49952765]
[1770498267244,0.014375,69611.0,69598.0,0.49952765]
[1770498267447,0.014376,69607.0,69589.0,0.49952765]
[1770498267642,0.014376,69607.0,69591.0,0.49952765]
[1770498268550,0.014375,69610.0,69594.0,0.014378]
[1770498268751,0.014375,69610.0,69591.0,0.51390665]
[1770498269457,0.014376,69608.0,69591.0,0.49952765]
[1770498269647,0.50275968,69607.0,69591.0,0.49952765]
[1770498271245,0.014376,69608.0,69591.0,0.49952765]
[1770498271453,0.014376,69606.0,69591.0,0.49952765]
[1770498271657,0.014375,69609.0,69591.0,0.49952765]
[1770498272953,0.51713468,69613.0,69591.0,0.49952765]
[1770498273147,0.014375,69611.0,69593.0,0.014378]
[1770498273347,0.014375,69611.0,69575.0,0.12827568]
[1770498273348,0.014373,69621.0,69604.0,0.49952765]
[1770498274956,0.014372,69625.0,69604.0,0.49952765]
[1770498275156,0.014372,69625.0,69606.0,0.49952765]
[1770498275759,0.014373,69622.0,69606.0,0.49952765]
[1770498278058,0.014371,69629.0,69608.0,0.51663323]
[1770498279258,0.071834,69653.0,69608.0,0.51663323]
[1770498279259,0.49404562,69632.0,69608.0,0.51663323]
[1770498279760,0.014373,69619.0,69608.0,0.51663323]
[1770498280061,0.014374,69617.0,69602.0,0.51663323]
[1770498280464,0.014374,69615.0,69602.0,0.51663323]
[1770498281564,0.014373,69619.0,69602.0,0.51663323]
[1770498281759,0.49404562,69622.0,69602.0,0.53101023]
[1770498281965,0.014371,69628.0,69605.0,0.51663323]
[1770498282265,0.014372,69625.0,69610.0,0.51663323]
[1770498282464,0.014373,69621.0,69610.0,0.51663323]
[1770498283166,0.014373,69618.0,69599.0,0.51663323]
[1770498283762,0.014373,69618.0,69601.0,0.51663323]
[1770498284265,0.014373,69622.0,69603.0,0.51663323]
[1770498284466,0.014373,69622.0,69605.0,0.51663323]
[1770498285765,0.014373,69620.0,69605.0,0.51663323]
[1770498287866,0.014374,69617.0,69605.0,0.51663323]
[1770498289169,0.50841862,69620.0,69605.0,0.51663323]
[1770498289467,0.014372,69624.0,69605.0,0.53100923]
[1770498292269,0.014372,69624.0,69583.0,0.28220611]
[1770498292270,0.014372,69627.0,69608.0,0.51663323]
[1770498292473,0.014372,69625.0,69610.0,0.51663323]
[1770498294075,0.49404562,69638.0,69612.0,0.51663323]
[1770498294076,0.014371,69628.0,69612.0,0.51663323]
[1770498294275,0.014371,69632.0,69614.0,0.51663323]
[1770498294872,0.014371,69630.0,69614.0,0.51663323]
[1770498296376,0.49404562,69633.0,69614.0,0.51663323]
[1770498296763,0.014372,69624.0,69614.0,0.51663323]
[1770498297075,0.014372,69624.0,69607.0,0.51663323]
[1770498298881,0.50841762,69627.0,69609.0,0.51663323]
[1770498299076,0.014371,69630.0,69611.0,0.51663323]
[1770498299774,0.014371,69630.0,69613.0,0.51663323]
[1770498300578,0.49404562,69634.0,69613.0,0.51663323]
[1770498300876,0.49404562,69631.0,69613.0,0.51663323]
[1770498301272,0.014371,69628.0,69613.0,0.51663323]
[1770498301469,0.014374,69614.0,69601.0,0.51663323]
[1770498301670,0.49404562,69621.0,69601.0,0.51663323]
[1770498301871,0.014372,69623.0,69605.0,0.51663323]
[1770498302373,0.50841862,69621.0,69605.0,0.51663323]
[1770498304182,0.014374,69615.0,69598.0,0.014377]
[1770498304381,0.014374,69615.0,69599.0,0.51663323]
[1770498304681,0.50841862,69618.0,69599.0,0.51663323]
[1770498305179,0.50841862,69618.0,69601.0,0.51663323]
[1770498305375,0.49404562,69618.0,69601.0,0.51663323]
[1770498305571,0.53776921,69630.0,69608.0,0.53520342]
[1770498305774,0.55214021,69630.0,69612.0,0.53520342]
[1770498305973,0.014371,69630.0,69612.0,0.53520342]
[1770498307482,0.014371,69630.0,69614.0,0.53520342]
[1770498310878,0.01437,69634.0,69618.0,0.53520342]
[1770498311082,0.014369,69637.0,69618.0,0.53520342]
[1770498311280,0.01437,69634.0,69618.0,0.53520342]
[1770498314787,0.01437,69634.0,69603.0,0.21317524]
[1770498314788,0.54421551,69648.0,69624.0,0.50580574]
[1770498316089,0.54421551,69648.0,69626.0,0.50580574]
[1770498317484,0.014369,69641.0,69626.0,0.50580574]
[1770498319287,0.014369,69641.0,69614.0,0.11448831]
[1770498319288,0.014367,69648.0,69628.0,0.50580574]
[1770498319684,0.014368,69646.0,69628.0,0.52017674]
[1770498323189,0.014368,69644.0,69628.0,0.50580574]
[1770498335903,0.014368,69643.0,69628.0,0.50580574]
[1770498346509,0.50884033,69646.0,69628.0,0.50580574]
[1770498347520,0.014369,69642.0,69628.0,0.50580574]
[1770498356829,0.014369,69640.0,69628.0,0.50580574]
[1770498359030,0.014368,69643.0,69628.0,0.50580574]
[1770498359323,0.014368,69646.0,69628.0,0.50580574]
[1770498361128,0.014368,69644.0,69628.0,0.50580574]
[1770498361321,0.50884033,69644.0,69628.0,0.50580574]
[1770498361625,0.01437,69637.0,69628.0,0.50580574]
[1770498362530,0.50884033,69640.0,69616.0,0.51823862]